bitfinex/quotes_SOLUSD_20240718
["timestamp","ask_amount","ask_price","bid_price","bid_amount"]
[1721268666373,21.4614,159.2,159.15,15.18]
[1721268666566,46.21732586,159.19,159.15,15.18]
[1721268667471,21.4614,159.2,159.15,15.18]
[1721268667779,21.4614,159.2,159.15,16.43644777]
[1721268668280,1.21732586,159.19,159.15,16.43644777]
[1721268668587,7.49912586,159.19,159.15,15.18]
[1721268669093,7.49912586,159.19,159.15,16.43644885]
[1721268669473,6.2818,159.19,159.15,16.43644885]
[1721268669681,7.49912586,159.19,159.15,15.18]
[1721268670163,1.21732586,159.19,159.15,15.18]
[1721268670369,61.39732586,159.19,159.14,1.25649272]
[1721268670591,46.21732586,159.19,159.15,1.25651942]
[1721268670896,46.21732586,159.19,159.14,15.18]
[1721268671088,46.21732586,159.19,159.14,16.43654187]
[1721268671289,46.21732586,159.19,159.14,15.18]
[1721268671493,61.39732586,159.19,159.14,15.18]
[1721268671797,61.39732586,159.19,159.12,15.1189]
[1721268671798,6.2829,159.16,159.12,15.1189]
[1721268671990,1.21732586,159.15,159.12,15.1189]
[1721268672167,1.21732586,159.16,159.12,30.2989]
[1721268672364,46.21732586,159.16,159.12,30.2989]
[1721268673092,15.6981,159.26,159.16,15.0674]
[1721268673271,15.6981,159.26,159.2,6.2812]
[1721268673272,6.279,159.26,159.2,6.2812]
[1721268673471,15.18,159.28,159.23,15.18]
[1721268674178,21.4583,159.28,159.23,15.18]
[1721268674382,6.2783,159.28,159.24,15.18]
[1721268674577,230.6668,159.3,159.23,15.18]
[1721268674890,230.6668,159.3,159.2,21.5291]
[1721268674891,6.2798,159.24,159.2,21.5291]
[1721268675095,6.2798,159.24,159.2,6.3491]
[1721268675988,35.6953,159.29,159.16,21.256]
[1721268675989,15.18,159.28,159.16,21.256]
[1721268676200,80.957,159.27,159.16,21.256]
[1721268676378,6.2819,159.19,159.16,15.0674]
[1721268676583,6.2814,159.2,159.16,15.0674]
[1721268676891,6.281,159.21,159.16,15.0674]
[1721268677315,45.0,159.2,159.16,15.0674]
[1721268677807,6.2822,159.18,159.12,45.92469041]
[1721268678111,6.2822,159.18,159.12,44.6681]
[1721268678313,6.2818,159.19,159.12,44.6681]
[1721268680208,6.2822,159.18,159.12,38.384]
[1721268680383,6.2831,159.16,159.12,16.4848]
[1721268681221,45.0,159.15,159.09,16.97121162]
[1721268681521,6.2838,159.14,159.08,28.118]
[1721268682015,6.2838,159.14,159.08,21.832]
[1721268682181,6.2848,159.12,159.08,15.2048]
[1721268682604,45.0,159.11,159.08,15.2048]
[1721268682812,6.2848,159.12,159.08,15.2048]
[1721268684835,97.2314,159.17,159.08,15.2048]
[1721268684994,6.285,159.11,159.04,28.213]
[1721268685188,45.0,159.1,159.04,28.213]
[1721268685628,51.2854,159.1,159.04,28.213]
[1721268685788,51.2854,159.1,159.04,21.9253]
[1721268685995,6.2859,159.09,159.04,21.9253]
[1721268686394,51.2862,159.08,159.04,21.9253]
[1721268686919,45.0,159.08,159.04,21.9253]
[1721268687110,6.2854,159.1,159.04,28.2129]
[1721268687416,6.285,159.11,159.05,6.2873]
[1721268687591,45.0,159.1,159.05,6.2873]
[1721268688024,45.0,159.1,159.04,28.2129]
[1721268688917,51.2855,159.1,159.04,21.9253]
[1721268689101,45.0,159.1,159.04,15.5325]
[1721268689830,6.2861,159.08,159.04,15.5325]
[1721268690126,45.0,159.07,159.04,15.5325]
[1721268690329,45.0,159.08,159.04,15.5325]
[1721268691318,26.2866,159.07,159.04,15.5325]
[1721268692224,20.0,159.07,159.04,15.5325]
[1721268692425,20.0,159.07,159.01,6.2887]
[1721268692839,45.0,159.06,159.0,30.77849031]
[1721268693429,51.287,159.06,159.0,30.77849031]
[1721268693743,45.0,159.06,159.02,6.2883]
[1721268694044,20.0,159.07,159.02,6.2883]
[1721268694349,6.2861,159.08,159.02,6.2883]
[1721268694536,65.0,159.07,159.02,6.2883]
[1721268695057,65.0,159.07,159.01,7.54637028]
[1721268695238,65.0,159.07,159.0,38.954]
[1721268695239,71.2866,159.07,159.0,38.954]
[1721268695427,71.2866,159.07,159.0,45.2431]
[1721268695754,70.7866,159.07,159.0,45.2431]
[1721268696220,64.5,159.07,159.0,45.2431]
[1721268696428,6.287,159.06,159.0,38.954]
[1721268696629,70.7865,159.07,159.01,1.25766649]
[1721268697023,70.7865,159.07,159.0,45.2432]
[1721268697825,6.287,159.06,159.0,45.2432]
[1721268698847,20.0,159.05,159.0,45.2432]
[1721268700253,51.2866,159.07,159.01,6.2888]
[1721268700432,20.0,159.05,159.0,45.2432]
[1721268700630,20.0,159.05,159.01,6.2888]
[1721268700952,20.0,159.05,159.0,45.2432]
[1721268701250,20.0,159.06,159.0,45.2432]
[1721268701450,20.0,159.06,159.01,7.54639743]
[1721268701833,20.0,159.06,159.01,1.25769743]
[1721268702054,20.0,159.06,159.0,45.2432]
[1721268702248,20.0,159.06,159.01,6.2888]
[1721268702566,45.0,159.05,158.99,0.8254865]
[1721268702846,6.2893,159.0,158.99,0.8254865]
[1721268703150,26.2893,159.0,158.99,0.8254865]
[1721268703448,71.2893,159.0,158.99,0.8254865]
[1721268706427,87.0125,159.0,158.99,8.65e-05]
[1721268708351,87.0125,159.0,158.87,21.1521]
[1721268708352,65.0,159.0,158.87,21.1521]
[1721268708555,6.2913,158.95,158.88,6.2936]
[1721268708751,20.0,158.94,158.87,21.1521]
[1721268708941,65.0,158.94,158.87,21.1521]
[1721268709259,65.0,158.94,158.88,6.294]
[1721268709558,71.2917,158.94,158.88,6.294]
[1721268709734,71.2917,158.94,158.87,6.2944]
[1721268709933,65.0,158.94,158.86,18.1829]
[1721268710439,6.2921,158.93,158.86,18.1829]
[1721268710637,65.0,158.92,158.86,18.1829]
[1721268711253,71.2926,158.92,158.86,18.1829]
[1721268712067,6.2928,158.91,158.86,11.8884]
[1721268712364,71.2925,158.92,158.86,11.8884]
[1721268712969,6.2931,158.91,158.84,21.434]
[1721268713171,20.0,158.9,158.84,21.434]
[1721268714063,20.0,158.9,158.85,6.2951]
[1721268714439,26.2932,158.9,158.84,15.1385]
[1721268714740,26.2932,158.9,158.84,21.4338]
[1721268714939,20.0,158.9,158.84,16.39742875]
[1721268715147,20.0,158.9,158.85,6.2948]
[1721268715467,20.0,158.91,158.85,6.2948]
[1721268715770,45.0,158.9,158.84,21.434]
[1721268715960,20.0,158.89,158.84,21.434]
[1721268716170,20.0,158.89,158.84,22.69293247]
[1721268716467,20.0,158.89,158.85,6.2951]
[1721268716671,6.2914,158.95,158.86,1.25893246]
[1721268716842,6.2928,158.91,158.85,23.29191504]
[1721268717046,6.2928,158.91,158.85,22.0332]
[1721268717452,6.2929,158.91,158.85,15.7381]
[1721268717844,20.0,158.9,158.85,15.7381]
[1721268718268,26.2933,158.9,158.85,15.7381]
[1721268718976,26.2933,158.9,158.84,15.1385]
[1721268719141,6.2947,158.87,158.83,2.08442016]
[1721268719349,71.2951,158.86,158.83,0.8254865]
[1721268719550,6.2954,158.85,158.83,0.8254865]
[1721268720273,6.2956,158.84,158.83,0.8254865]
[1721268720570,71.2956,158.84,158.83,0.8254865]
[1721268720749,65.0,158.84,158.83,0.8254865]
[1721268720949,20.0,158.84,158.83,0.8254865]
[1721268721163,26.2956,158.84,158.83,0.8254865]
[1721268721349,71.2956,158.84,158.83,0.8254865]
[1721268729682,71.2956,158.84,158.83,8.65e-05]
[1721268729893,77.612,158.84,158.83,8.65e-05]
[1721268731870,6.2984,158.77,158.76,0.34060428]
[1721268732074,71.2984,158.77,158.76,0.34060428]
[1721268734001,20.0,158.77,158.76,0.34060428]
[1721268734553,26.2984,158.77,158.76,0.34060428]
[1721268735781,71.2984,158.77,158.76,0.34060428]
[1721268736590,26.2984,158.77,158.76,0.34060428]
[1721268736802,20.0,158.77,158.76,0.34060428]
[1721268737418,26.2984,158.77,158.76,0.34060428]
[1721268738377,71.2984,158.77,158.76,0.34060428]
[1721268740521,26.2984,158.77,158.76,0.34060428]
[1721268740677,29.89716036,158.84,158.76,0.34060428]
[1721268740871,6.2982,158.78,158.76,0.34060428]
[1721268741177,6.2984,158.77,158.76,0.34060428]
[1721268742181,51.2984,158.77,158.76,4.28e-06]
[1721268742402,71.2984,158.77,158.76,4.28e-06]
[1721268743184,77.8509,158.77,158.76,4.28e-06]
[1721268745519,77.8509,158.77,158.76,4.28e-06]
[1721268746010,109.5392954,158.77,158.76,4.28e-06]
[1721268746807,108.2109,158.77,158.76,4.28e-06]
[1721268748683,56.6584,158.77,158.76,4.28e-06]
[1721268750021,101.6584,158.77,158.76,4.28e-06]
[1721268751293,109.19911961,158.77,158.76,4.28e-06]
[1721268751524,6.3019,158.68,158.67,0.8254865]
[1721268751729,26.3019,158.68,158.67,0.8254865]
[1721268753121,6.3033,158.65,158.58,6.3058]
[1721268753323,6.3037,158.64,158.56,14.1206865]
[1721268753536,6.3037,158.64,158.57,6.3063]
[1721268753690,6.3037,158.64,158.58,6.3058]
[1721268754100,20.0,158.63,158.53,15.7698]
[1721268754314,6.3051,158.61,158.54,6.3073]
[1721268754516,6.3056,158.59,158.53,22.0777]
[1721268754913,20.0,158.58,158.53,22.0777]
[1721268755405,20.0,158.58,158.53,15.7698]
[1721268756006,20.0,158.64,158.53,15.7698]
[1721268756402,6.3055,158.6,158.53,22.0773]
[1721268756602,6.3055,158.6,158.52,23.55898586]
[1721268756603,20.0,158.68,158.52,22.2978]
[1721268756898,15.7598,158.64,158.52,29.86754154]
[1721268757098,6.3059,158.58,158.52,29.86754154]
[1721268757335,45.0,158.63,158.52,23.55924154]
[1721268757497,6.3063,158.58,158.52,22.2978]
[1721268757699,6.3063,158.58,158.51,7.1340865]
[1721268758204,6.3073,158.55,158.51,0.8254865]
[1721268758428,26.3076,158.54,158.51,0.8254865]
[1721268759142,20.0,158.54,158.51,0.8254865]
[1721268759433,6.3076,158.54,158.51,0.8254865]
[1721268759949,6.3075,158.54,158.51,0.8254865]
[1721268760240,6.3081,158.53,158.51,0.8254865]
[1721268760402,6.3083,158.52,158.51,0.8254865]
[1721268760604,6.308,158.53,158.51,0.8254865]
[1721268761023,6.3083,158.52,158.51,0.8254865]
[1721268761730,26.3083,158.52,158.51,0.8254865]
[1721268762146,71.3083,158.52,158.51,0.8254865]
[1721268762631,93.8357,158.52,158.51,0.8254865]
[1721268762810,139.9665,158.52,158.51,0.8254865]
[1721268763228,71.3083,158.52,158.51,0.8254865]
[1721268764413,26.3083,158.52,158.51,0.8254865]
[1721268765832,71.3083,158.52,158.51,0.8254865]
[1721268766240,71.3083,158.52,158.51,8.65e-05]
[1721268767129,71.3083,158.52,158.38,6.3136]
[1721268767130,6.3116,158.44,158.38,6.3136]
[1721268767329,6.3113,158.45,158.38,6.3136]
[1721268767859,65.0,158.44,158.35,0.8254865]
[1721268768062,6.3136,158.39,158.35,0.8254865]
[1721268768233,6.3141,158.38,158.35,0.8254865]
[1721268768435,95.36,158.44,158.35,0.8254865]
[1721268768667,6.3122,158.43,158.36,23.15058525]
[1721268768957,6.3122,158.43,158.36,21.8879]
[1721268769258,20.0,158.44,158.36,21.8879]
[1721268769427,6.3123,158.42,158.36,28.2025]
[1721268769631,20.0,158.47,158.36,28.2025]
[1721268769855,45.0,158.46,158.36,28.2025]
[1721268770062,20.0,158.45,158.36,28.2025]
[1721268770237,6.3124,158.42,158.36,21.8879]
[1721268770745,6.3123,158.42,158.36,21.8879]
[1721268770938,20.0,158.45,158.37,7.57692011]
[1721268771148,6.3114,158.45,158.38,6.3138]
[1721268771356,20.0,158.44,158.36,43.9882]
[1721268771660,1.26251665,158.43,158.37,6.3142]
[1721268771829,1.26251665,158.42,158.36,18.16490315]
[1721268772258,1.26251665,158.46,158.39,6.3134]
[1721268772487,7.57371665,158.45,158.38,22.0985]
[1721268772652,7.57371665,158.45,158.39,1.26244451]
[1721268772957,1.26251665,158.45,158.39,1.26244451]
[1721268773156,6.3116,158.44,158.39,1.26244451]
[1721268773544,6.3112,158.45,158.39,1.26244451]
[1721268773751,1.26251665,158.44,158.39,1.26244451]
[1721268773955,1.26251665,158.44,158.36,18.16490315]
[1721268774148,6.3116,158.44,158.37,7.57664759]
[1721268774346,1.26251665,158.43,158.36,18.16490315]
[1721268774574,7.57451665,158.43,158.37,6.3142]
[1721268774873,1.26251665,158.42,158.36,24.47950315]
[1721268775170,1.26251665,158.42,158.37,1.26257804]
[1721268775374,7.57481665,158.42,158.36,24.47950315]
[1721268775669,6.312,158.43,158.37,6.3142]
[1721268775966,1.26251665,158.42,158.36,18.16490315]
[1721268776172,6.3125,158.42,158.35,22.4279865]
[1721268776346,72.74091665,158.41,158.35,0.3254865]
[1721268776750,6.3135,158.39,158.35,0.3254865]
[1721268776953,1.26251665,158.38,158.35,0.3254865]
[1721268777270,7.57571665,158.4,158.35,0.3254865]
[1721268777501,1.26251665,158.39,158.35,0.3254865]
[1721268777685,1.26251665,158.41,158.36,6.3145]
[1721268777852,7.57531665,158.41,158.35,6.6405865]
[1721268778041,1.26251665,158.41,158.35,6.6405865]
[1721268779455,1.26251665,158.44,158.36,15.786]
[1721268779657,6.3109,158.46,158.4,6.313]
[1721268779866,1.26251665,158.45,158.39,22.0971]
[1721268780169,6.3109,158.46,158.4,7.57536604]
[1721268780358,6.3107,158.46,158.4,1.26236604]
[1721268780556,6.3104,158.47,158.4,7.57516604]
[1721268780762,1.26251665,158.46,158.4,7.57516604]
[1721268780962,1.26251665,158.5,158.41,15.7811]
[1721268781171,7.57161665,158.5,158.43,6.3117]
[1721268781371,7.57161665,158.5,158.44,1.26210099]
[1721268781573,7.57161665,158.5,158.44,7.57350099]
[1721268781876,7.57111665,158.52,158.45,6.3111]
[1721268782055,6.3086,158.52,158.46,7.57236151]
[1721268782675,1.26251665,158.51,158.45,6.311]
[1721268782883,7.57141665,158.51,158.46,1.26186079]
[1721268783177,1.26251665,158.5,158.38,6.3138]
[1721268783386,1.26251665,158.5,158.4,6.3131]
[1721268783676,1.26251665,158.5,158.37,38.3706]
[1721268783677,6.3099,158.48,158.37,22.5857]
[1721268783893,1.26251665,158.47,158.42,6.3121]
[1721268784259,1.26251665,158.51,158.43,1.26215565]
[1721268784654,6.3092,158.5,158.43,6.3119]
[1721268784860,7.57121665,158.51,158.44,7.57351999]
[1721268785051,7.57121665,158.51,158.45,6.3111]
[1721268785349,7.57121665,158.51,158.44,6.3115]
[1721268785881,7.57121665,158.51,158.45,7.57293777]
[1721268786381,1.26251665,158.55,158.49,6.3091]
[1721268786585,1.26251665,158.54,158.45,16.2636]
[1721268786759,6.3087,158.51,158.45,16.2636]
[1721268786959,1.26251665,158.5,158.45,16.2636]
[1721268787290,6.3095,158.49,158.45,16.2636]
[1721268787774,1.26251665,158.55,158.45,16.2636]
[1721268787775,6.3082,158.53,158.46,1.26202022]
[1721268787985,1.26251665,158.52,158.47,6.3103]
[1721268788154,15.764,158.59,158.45,32.0405]
[1721268788355,7.56921665,158.56,158.48,15.7747]
[1721268788658,1.26251665,158.56,158.48,15.7747]
[1721268788856,7.56961665,158.56,158.5,6.309]
[1721268789058,6.3059,158.59,158.51,6.3087]
[1721268789286,7.56851665,158.58,158.52,6.3082]
[1721268789582,6.3068,158.56,158.51,15.7717]
[1721268789886,1.26251665,158.57,158.52,1.26147384]
[1721268790059,1.26251665,158.57,158.52,7.56977384]
[1721268790590,1.26251665,158.6,158.54,15.7687]
[1721268790770,6.3044,158.62,158.55,6.307]
[1721268790968,1.26251665,158.61,158.51,22.08]
[1721268791183,6.3056,158.59,158.52,6.3082]
[1721268791481,1.26251665,158.58,158.52,6.3082]
[1721268791785,6.3052,158.6,158.53,7.569239]
[1721268791993,1.26251665,158.59,158.54,6.3075]
[1721268792153,1.26251665,158.6,158.55,7.56822889]
[1721268792360,1.26251665,158.65,158.55,7.56822889]
[1721268792687,1.26251665,158.64,158.55,1.26122889]
[1721268792861,1.26251665,158.64,158.57,15.7657]
[1721268793174,7.56611665,158.64,158.58,1.26097257]
[1721268793484,1.26251665,158.65,158.58,1.26097257]
[1721268793659,6.1186,158.66,158.58,1.26097257]
[1721268793660,1.26251665,158.64,158.58,1.26097257]
[1721268794085,1.26251665,158.66,158.59,17.02277176]
[1721268794292,6.3032,158.65,158.59,15.763]
[1721268794457,6.3026,158.67,158.6,6.3051]
[1721268794657,1.26251665,158.69,158.61,6.3046]
[1721268795079,6.302,158.68,158.61,6.3046]
[1721268795282,7.56501665,158.67,158.61,6.3046]
[1721268795585,1.26251665,158.7,158.63,6.3039]
[1721268795765,7.56371665,158.7,158.64,1.26048197]
[1721268795965,7.56371665,158.7,158.65,1.26045944]
[1721268796292,6.3007,158.72,158.65,6.303]
[1721268796496,1.26251665,158.71,158.65,6.303]
[1721268796668,1.26251665,158.7,158.63,22.063]
[1721268797076,6.3016,158.69,158.63,15.7591]
[1721268797278,1.26251665,158.68,158.62,15.5785]
[1721268797585,6.3016,158.69,158.63,7.56450248]
[1721268797758,6.3016,158.69,158.63,6.3039]
[1721268797964,6.3016,158.69,158.62,21.8828]
[1721268798165,6.3012,158.7,158.63,7.56424426]
[1721268798462,1.26251665,158.7,158.64,1.2604882]
[1721268798666,0.54992996,158.71,158.63,15.759]
[1721268798868,1.26251665,158.7,158.65,6.303]
[1721268799166,1.81244661,158.71,158.65,6.303]
[1721268799771,7.56241665,158.74,158.67,6.3023]
[1721268799971,6.3004,158.72,158.66,15.7569]
[1721268800160,1.26251665,158.71,158.63,15.7599]
[1721268800362,1.26251665,158.74,158.64,1.2603466]
[1721268800563,7.56261665,158.73,158.67,6.3022]
[1721268800763,6.3005,158.72,158.66,6.3027]
[1721268800963,7.56301665,158.72,158.65,22.0603]
[1721268801190,6.3,158.73,158.66,7.56164801]
[1721268801390,6.3,158.73,158.67,6.3023]
[1721268801577,7.56211665,158.74,158.68,7.56196322]
[1721268801763,1.26251665,158.74,158.68,7.56196322]
[1721268801966,7.56221665,158.74,158.67,6.3023]
[1721268802166,6.3,158.73,158.67,6.3023]
[1721268802471,1.26251665,158.75,158.65,15.7572]
[1721268802674,6.2999,158.74,158.67,6.302]
[1721268802870,7.56171665,158.75,158.68,17.01486565]
[1721268803071,7.56171665,158.75,158.69,1.25997839]
[1721268803573,1.26251665,158.75,158.69,1.25997839]
[1721268803784,6.2986,158.77,158.71,6.3007]
[1721268803982,7.56111665,158.77,158.7,6.3011]
[1721268804190,1.90805605,158.78,158.71,6.3006]
[1721268804392,6.2993,158.75,158.69,6.3015]
[1721268804901,6.3003,158.73,158.67,15.7557]
[1721268805072,1.26251665,158.72,158.66,6.6277]
[1721268805279,6.2996,158.74,158.67,6.3023]
[1721268805478,7.56251665,158.73,158.67,6.3023]
[1721268805674,15.7471,158.76,158.66,6.6277]
[1721268805877,6.3004,158.72,158.66,6.6277]
[1721268806077,6.3004,158.72,158.65,22.0601]
[1721268806275,6.3008,158.71,158.65,22.0601]
[1721268806500,6.3003,158.73,158.65,15.757]
[1721268806797,15.7471,158.76,158.65,22.0598]
[1721268806798,7.56291665,158.72,158.65,22.0598]
[1721268807102,7.56331665,158.71,158.65,15.757]
[1721268807397,6.3012,158.7,158.65,15.757]
[1721268807592,6.3008,158.71,158.65,15.757]
[1721268808809,1.26251665,158.7,158.62,15.5785]
[1721268809298,6.302,158.68,158.62,15.5785]
[1721268809508,1.26251665,158.67,158.62,15.4735776]
[1721268809674,1.26251665,158.7,158.6,6.3051]
[1721268809873,46.26251665,158.7,158.6,6.3051]
[1721268810284,6.3027,158.66,158.61,1.2606208]
[1721268810497,6.3027,158.66,158.6,6.3051]
[1721268810703,7.56571665,158.65,158.58,28.1862]
[1721268810875,6.3032,158.65,158.58,28.1862]
[1721268811081,6.3032,158.65,158.59,6.3055]
[1721268811380,7.56601665,158.64,158.58,15.7647]
[1721268811691,6.3031,158.66,158.58,15.7647]
[1721268811875,1.26251665,158.65,158.58,15.7647]
[1721268812285,6.3032,158.65,158.58,22.0703]
[1721268812490,7.56521665,158.67,158.59,1.2607083]
[1721268812691,7.56521665,158.67,158.6,1.26070793]
[1721268812878,1.26251665,158.67,158.62,6.3042]
[1721268813077,1.26251665,158.7,158.63,1.26057908]
[1721268813402,1.26251665,158.7,158.65,6.3031]
[1721268813584,1.26251665,158.7,158.66,1.26038272]
[1721268813784,12.7449,158.71,158.66,1.26038272]
[1721268813987,1.26251665,158.74,158.66,1.26038272]
[1721268814510,7.50091665,158.75,158.69,6.3012]
[1721268814810,6.2996,158.74,158.67,22.0572]
[1721268815014,13.80021665,158.75,158.68,7.56181818]
[1721268815300,13.80021665,158.75,158.69,6.3015]
[1721268815509,6.2998,158.74,158.67,15.7552]
[1721268815877,6.2998,158.74,158.68,7.56192581]
[1721268816100,13.80011665,158.75,158.68,6.3019]
[1721268816494,13.80011665,158.75,158.67,15.7552]
[1721268816495,6.2997,158.74,158.67,22.0575]
[1721268816690,6.3001,158.73,158.67,15.7552]
[1721268816888,6.2996,158.74,158.67,22.0575]
[1721268817092,6.2996,158.74,158.68,6.3019]
[1721268817404,6.3001,158.73,158.67,22.0575]
[1721268817608,7.50091665,158.75,158.68,6.3018]
[1721268817799,13.80021665,158.75,158.68,6.3018]
[1721268818107,13.80021665,158.75,158.69,1.26002598]
[1721268818700,7.50091665,158.75,158.65,16.0902]
[1721268818900,6.3016,158.69,158.65,16.0902]
[1721268819100,6.3016,158.69,158.63,6.3039]
[1721268819604,6.3011,158.71,158.63,15.7593]
[1721268819813,6.3012,158.7,158.63,22.0629]
[1721268820206,6.3012,158.7,158.64,6.3035]
[1721268820711,6.3031,158.66,158.58,12.8342]
[1721268820902,1.26251665,158.68,158.59,22.0693]
[1721268821216,6.3031,158.65,158.59,22.0693]
[1721268821398,13.64841665,158.67,158.6,6.3051]
[1721268821710,6.3032,158.65,158.59,15.7638]
[1721268822397,6.3032,158.65,158.59,22.0692]
[1721268822913,13.64851665,158.67,158.59,22.0692]
[1721268823123,7.34581665,158.67,158.58,1.26070178]
[1721268823417,60.7575,158.66,158.55,22.0739]
[1721268823591,6.3044,158.62,158.55,22.0739]
[1721268823796,1.26251665,158.61,158.56,1.26101922]
[1721268824011,21.26251665,158.65,158.55,15.7672]
[1721268824205,6.3048,158.61,158.55,15.7672]
[1721268824518,1.26251665,158.6,158.55,15.7672]
[1721268824814,1.26251665,158.6,158.52,30.9521]
[1721268824995,1.26251665,158.64,158.52,30.9521]
[1721268825313,6.3059,158.58,158.52,15.7708]
[1721268825710,1.26251665,158.57,158.49,22.3023]
[1721268825910,66.26251665,158.62,158.49,15.7736]
[1721268826104,6.3064,158.57,158.5,6.3091]
[1721268826618,6.3064,158.57,158.51,6.3086]
[1721268826917,1.26251665,158.61,158.49,15.7736]
[1721268827494,1.26251665,158.61,158.52,6.3082]
[1721268827801,23.043,158.6,158.51,15.7712]
[1721268827997,15.76,158.63,158.54,15.7688]
[1721268827998,6.3043,158.63,158.54,15.7688]
[1721268828195,21.26251665,158.62,158.54,15.7688]
[1721268828398,6.3052,158.6,158.54,15.7688]
[1721268828615,1.26251665,158.59,158.54,15.7688]
[1721268828986,7.56811665,158.59,158.54,15.7688]
[1721268829185,1.26251665,158.62,158.54,22.0761]
[1721268829412,6.3052,158.6,158.54,22.0761]
[1721268829615,1.26251665,158.59,158.54,15.7688]
[1721268829817,6.3058,158.59,158.52,6.3082]
[1721268830111,6.3051,158.6,158.53,6.3076]
[1721268830309,7.56711665,158.62,158.54,15.7687]
[1721268830609,6.3048,158.61,158.54,22.0762]
[1721268830918,1.26251665,158.62,158.55,7.56833036]
[1721268831119,7.56681665,158.62,158.55,7.56833036]
[1721268831291,6.3048,158.61,158.55,7.56833036]
[1721268831613,6.3048,158.61,158.54,22.0762]
[1721268831914,6.3048,158.61,158.55,6.3071]
[1721268832114,6.3051,158.6,158.54,22.0762]
[1721268832320,7.56831665,158.59,158.53,6.3078]
[1721268832489,6.3058,158.59,158.52,6.3082]
[1721268833193,7.56871665,158.58,158.52,6.3082]
[1721268833392,6.3062,158.58,158.52,6.3082]
[1721268833629,7.56901665,158.57,158.51,22.0803]
[1721268833796,6.3065,158.57,158.51,22.0803]
[1721268833996,6.3054,158.6,158.53,6.3076]
[1721268834196,1.26251665,158.59,158.54,7.56862977]
[1721268834405,7.56821665,158.59,158.53,6.3078]
[1721268834717,1.26251665,158.62,158.53,15.7691]
[1721268835028,6.3049,158.61,158.55,6.3068]
[1721268835223,1.26251665,158.62,158.53,15.7691]
[1721268837007,1.26251665,158.62,158.54,1.26108333]
[1721268837214,6.2665,158.64,158.55,1.2610497]
[1721268837409,7.52901665,158.64,158.52,20.0]
[1721268837610,7.52901665,158.64,158.58,6.3058]
[1721268837810,13.83261665,158.64,158.58,6.3058]
[1721268837991,13.83261665,158.64,158.57,22.0713]
[1721268838418,13.83261665,158.64,158.58,7.56671793]
[1721268838692,6.2665,158.64,158.6,6.305]
[1721268838913,7.52901665,158.64,158.57,15.7651]
[1721268839120,7.52901665,158.64,158.59,6.3054]
[1721268839605,7.52901665,158.64,158.6,6.305]
[1721268839809,13.83261665,158.64,158.58,6.3058]
[1721268840120,6.3044,158.62,158.57,15.7651]
[1721268840315,7.52901665,158.64,158.58,6.3058]
[1721268840716,13.83261665,158.64,158.59,1.26088653]
[1721268840901,6.304,158.63,158.57,22.0714]
[1721268841509,6.304,158.63,158.58,1.26091841]
[1721268841705,7.52901665,158.64,158.58,7.56671841]
[1721268841917,6.2665,158.64,158.58,1.26091841]
[1721268842534,6.2665,158.64,158.59,6.3054]
[1721268842824,7.52901665,158.64,158.57,15.7651]
[1721268843022,6.3042,158.63,158.57,22.0713]
[1721268843220,6.3042,158.63,158.56,30.57]
[1721268843221,1.26251665,158.62,158.54,15.7687]
[1721268843601,6.3047,158.61,158.55,7.56787686]
[1721268843801,6.3047,158.61,158.55,6.3068]
[1721268844002,7.56691665,158.62,158.55,6.3068]
[1721268844225,6.3044,158.62,158.56,6.3066]
[1721268844597,1.26251665,158.61,158.56,6.3066]
[1721268844802,1.26251665,158.61,158.55,6.307]
[1721268845108,7.56731665,158.61,158.55,6.307]
[1721268845427,6.3044,158.62,158.56,7.56777543]
[1721268845628,7.56751665,158.61,158.54,22.076]
[1721268845926,6.305,158.61,158.55,6.307]
[1721268846510,7.56771665,158.6,158.54,15.7687]
[1721268846709,1.26251665,158.59,158.54,15.7687]